[Event "Modransky Cup 2025"]
[Site "Modra"]
[Date "2025.02.22"]
[Round "4.6"]
[White "Galla, Richard"]
[Black "Nosal, Tobias"]
[Result "0-1"]
[Annotator "RC"]
[ECO "D30"]
[WhiteElo "1960"]
[BlackElo "1807"]
[PlyCount "104"]
[EventDate "2025.02.20"]
[EventCountry "SVK"]
[SourceTitle "playchess.com"]
[Source "ChessBase"]
[SourceQuality "1"]
[TimeControl "5400+30"]

1. d4 {[%emt 0:00:05]} e6 {[%emt 0:00:45]} 2. c4 {[%emt 0:00:30]} d5 {[%emt 0:00:00]} 3. g3 {[%emt 0:00:06]} a6 {[%emt 0:00:10]} 4. Bg2 {[%emt 0:00:44]} dxc4 {[%emt 0:01:03]} 5. Nf3 {[%emt 0:00:26]} b5 {[%emt 0:02:25]} 6. Ne5 {[%emt 0:02:38]} c6 {[%emt 0:00:30]} 7. Nxc6 {[%emt 0:02:26]} Qb6 {[%emt 0:01:18]} 8. Ne5 {[%emt 0:04:24]} Bb7 {[%emt 0:00:54]} 9. Bxb7 {[%emt 0:04:52]} Qxb7 {[%emt 0:00:02]} 10. O-O {[%emt 0:00:02]} Nf6 {[%emt 0:05:00]} 11. b3 {[%emt 0:02:10]} cxb3 {[%emt 0:01:57]} 12. Qxb3 {[%emt 0:01:00]} Be7 {[%emt 0:06:17]} 13. Bd2 {[%emt 0:09:12]} O-O {[%emt 0:12:02]} 14. Bf4 {[%emt 0:00:30]} Rc8 {[%emt 0:06:03]} 15. Rc1 {[%emt 0:01:44]} Rxc1+ {[%emt 0:05:35]} 16. Bxc1 {[%emt 0:01:20]} Qc8 {[%emt 0:00:30]} 17. Bf4 {[%emt 0:00:30]} Nbd7 {[%emt 0:00:30]} 18. Nd2 {[%emt 0:00:30]} Nxe5 {[%emt 0:17:37]} 19. Nf3 {[%emt 0:03:20]} Nfd7 {[%emt 0:08:46]} 20. Bd2 {[%emt 0:09:49]} Qb7 {[%emt 0:09:29]} 21. Rc1 {[%emt 0:05:00]} Rc8 {[%emt 0:00:30]} 22. Rxc8+ {[%emt 0:00:30]} Qxc8 {[%emt 0:00:30]} 23. Nxe5 {[%emt 0:00:30]} Nb6 {[%emt 0:00:30]} 24. Nd3 {[%emt 0:00:30]} b4 {[%emt 0:00:30]} 25. Bxb4 {[%emt 0:00:30]} Bxb4 {[%emt 0:00:30]} 26. Qxb4 {[%emt 0:00:02]} Nc4 {[%emt 0:04:40]} 27. Qe7 {[%emt 0:02:12]} h6 {[%emt 0:05:09]} 28. h4 {[%emt 0:03:05]} Qf8 {[%emt 0:02:46]} 29. Qc5 {[%emt 0:06:00]} Qd6 {[%emt 0:03:09]} 30. Kf1 {[%emt 0:03:09]} Qb6 {[%emt 0:01:54]} 31. Qxb6 {[%emt 0:03:28]} Nxb6 {[%emt 0:00:01]} 32. Ke1 {[%emt 0:00:26]} Nc4 {[%emt 0:02:17]} 33. Kd1 {[%emt 0:01:21]} Kf8 {[%emt 0:01:13]} 34. Kc2 {[%emt 0:00:02]} Nd6 {[%emt 0:00:53]} 35. Nc5 {[%emt 0:03:54]} a5 {[%emt 0:00:47]} 36. Kd3 {[%emt 0:00:33]} Ke7 {[%emt 0:01:02]} 37. e4 {[%emt 0:00:53]} f6 {[%emt 0:01:13]} 38. Nb3 {[%emt 0:04:01]} Nc4 {[%emt 0:00:19]} 39. Kc3 {[%emt 0:01:05]} Kd6 {[%emt 0:00:22]} 40. f4 {[%emt 0:03:58]} g5 {[%emt 0:00:48]} 41. hxg5 {[%emt 0:03:23]} hxg5 {[%emt 0:00:02]} 42. Nc1 {[%emt 0:02:03]} gxf4 {[%emt 0:00:37]} 43. gxf4 {[%emt 0:00:02]} Ne3 {[%emt 0:00:43]} 44. Kd3 {[%emt 0:00:47]} Ng2 {[%emt 0:00:38]} 45. Ne2 {[%emt 0:00:18]} Ne1+ {[%emt 0:00:29]} 46. Kc3 {[%emt 0:00:38]} Nf3 {[%emt 0:00:29]} 47. Ng3 {[%emt 0:03:07]} Nh4 {[%emt 0:00:30]} 48. Nh5 {[%emt 0:01:03]} f5 {[%emt 0:00:32]} 49. e5+ {[%emt 0:00:51]} Kc6 {[%emt 0:00:32]} 50. Ng3 {[%emt 0:02:06]} Ng6 {[%emt 0:00:27]} 51. Ne2 {[%emt 0:00:03]} Kd5 {[%emt 0:00:22]} 52. Kd3 {[%emt 0:00:17]} Ne7 {[%emt 0:00:39]} 0-1

[Event "Modransky Cup 2025"]
[Site "Modra"]
[Date "2025.02.22"]
[Round "4.7"]
[White "Kukla, Tomas"]
[Black "Smetana, Peter"]
[Result "0-1"]
[Annotator "ChessBase"]
[ECO "A57"]
[WhiteElo "1856"]
[BlackElo "1947"]
[PlyCount "116"]
[EventDate "2025.02.20"]
[EventCountry "SVK"]
[SourceTitle "playchess.com"]
[Source "ChessBase"]
[SourceQuality "1"]
[TimeControl "5400+30"]

1. d4 {[%emt 0:00:06]} Nf6 {[%emt 0:00:13]} 2. c4 {[%emt 0:00:21]} c5 {[%emt 0:00:08]} 3. d5 {[%emt 0:00:13]} b5 {[%emt 0:00:09]} 4. cxb5 {[%emt 0:02:19]} a6 {[%emt 0:00:30]} 5. Qb3 {[%emt 0:03:30]} axb5 {[%emt 0:01:52]} 6. Qxb5 {[%emt 0:01:14]} Qa5+ {[%emt 0:03:45]} 7. Qxa5 {[%emt 0:01:16]} Rxa5 {[%emt 0:00:07]} 8. Nc3 {[%emt 0:00:17]} e6 {[%emt 0:03:32]} 9. e4 {[%emt 0:02:47]} Bb7 {[%emt 0:02:02]} 10. Bd2 {[%emt 0:02:04]} Ra8 {[%emt 0:01:09]} 11. Bc4 {[%emt 0:02:19]} Nxe4 {[%emt 0:02:24]} 12. Nge2 {[%emt 0:13:46]} Nd6 {[%emt 0:17:33]} 13. Bb3 {[%emt 0:10:55]} c4 {[%emt 0:02:29]} 14. Bc2 {[%emt 0:00:50]} exd5 {[%emt 0:02:10]} 15. Nd4 {[%emt 0:00:56]} Be7 {[%emt 0:01:05]} 16. O-O {[%emt 0:01:31]} O-O {[%emt 0:01:37]} 17. Bf4 {[%emt 0:00:59]} Nc8 {[%emt 0:37:35]} 18. Rfe1 {[%emt 0:04:07]} Bf6 {[%emt 0:01:39]} 19. Be5 {[%emt 0:01:01]} Bxe5 {[%emt 0:00:39]} 20. Rxe5 {[%emt 0:00:06]} Nb6 {[%emt 0:00:25]} 21. Nf5 {[%emt 0:07:11]} Nc6 {[%emt 0:00:52]} 22. Ne7+ {[%emt 0:01:06]} Nxe7 {[%emt 0:01:12]} 23. Rxe7 {[%emt 0:00:08]} Rfe8 {[%emt 0:00:16]} 24. Rae1 {[%emt 0:00:48]} Rxe7 {[%emt 0:00:12]} 25. Rxe7 {[%emt 0:00:06]} Kf8 {[%emt 0:00:09]} 26. Re5 {[%emt 0:01:04]} d6 {[%emt 0:01:27]} 27. Re1 {[%emt 0:00:56]} d4 {[%emt 0:00:18]} 28. Nb5 {[%emt 0:01:06]} d3 {[%emt 0:00:16]} 29. Bd1 {[%emt 0:03:31]} d5 {[%emt 0:00:28]} 30. a4 {[%emt 0:01:39]} Bc6 {[%emt 0:01:05]} 31. Nd4 {[%emt 0:23:18]} Bxa4 {[%emt 0:01:03]} 32. b3 {[%emt 0:01:25]} Bd7 {[%emt 0:00:34]} 33. f4 {[%emt 0:02:41]} Ra1 {[%emt 0:01:23]} 34. Kf2 {[%emt 0:01:00]} Ra2+ {[%emt 0:01:03]} 35. Kf3 {[%emt 0:00:27]} Nc8 {[%emt 0:02:12]} 36. h3 {[%emt 0:03:01]} Rb2 {[%emt 0:03:17]} 37. g4 {[%emt 0:00:56]} c3 {[%emt 0:00:58]} 38. Ke3 {[%emt 0:02:14]} c2 {[%emt 0:00:32]} 39. Bxc2 {[%emt 0:00:34]} dxc2 {[%emt 0:00:15]} 40. Rc1 {[%emt 0:00:34]} Nd6 {[%emt 0:00:21]} 41. Rxc2 {[%emt 0:00:32]} Rxc2 {[%emt 0:00:20]} 42. Nxc2 {[%emt 0:00:05]} Nb5 {[%emt 0:00:13]} 43. Kd3 {[%emt 0:02:31]} Ke7 {[%emt 0:00:22]} 44. Ne3 {[%emt 0:01:06]} Kd6 {[%emt 0:00:20]} 45. b4 {[%emt 0:00:21]} Nc7 {[%emt 0:02:21]} 46. Nc2 {[%emt 0:00:29]} Ne6 {[%emt 0:00:12]} 47. Ke3 {[%emt 0:00:08]} d4+ {[%emt 0:00:27]} 48. Nxd4 {[%emt 0:00:19]} Nxd4 {[%emt 0:00:05]} 49. Kxd4 {[%emt 0:00:07]} Bc6 {[%emt 0:00:32]} 50. h4 {[%emt 0:00:14]} Bf3 {[%emt 0:00:08]} 51. g5 {[%emt 0:00:06]} g6 {[%emt 0:00:16]} 52. Ke3 {[%emt 0:00:36]} Bc6 {[%emt 0:00:08]} 53. f5 {[%emt 0:00:23]} gxf5 {[%emt 0:00:13]} 54. Kf4 {[%emt 0:00:07]} Ke6 {[%emt 0:00:03]} 55. h5 {[%emt 0:00:09]} Bb7 {[%emt 0:00:18]} 56. b5 {[%emt 0:00:16]} Ba8 {[%emt 0:00:06]} 57. b6 {[%emt 0:00:04]} Bb7 {[%emt 0:00:02]} 58. h6 {[%emt 0:02:03]} Ba8 {[%emt 0:00:05]} 0-1

[Event "Modransky Cup 2025"]
[Site "Modra"]
[Date "2025.02.22"]
[Round "4.8"]
[White "Petrik, Matus"]
[Black "Rozboril, Alex"]
[Result "1-0"]
[Annotator "NA RC"]
[ECO "A28"]
[WhiteElo "1880"]
[BlackElo "1633"]
[PlyCount "45"]
[EventDate "2025.02.20"]
[EventCountry "SVK"]
[SourceTitle "playchess.com"]
[Source "ChessBase"]
[SourceQuality "1"]
[TimeControl "5400+30"]

1. c4 {[%emt 0:00:05]} e5 {[%emt 0:00:10]} 2. Nc3 {[%emt 0:01:40]} Nf6 {[%emt 0:00:31]} 3. Nf3 {[%emt 0:00:30]} Nc6 {[%emt 0:01:03]} 4. d3 {[%emt 0:00:08]} d5 {[%emt 0:01:48]} 5. cxd5 {[%emt 0:01:18]} Nxd5 {[%emt 0:00:19]} 6. g3 {[%emt 0:00:17]} f6 {[%emt 0:01:26]} 7. Bg2 {[%emt 0:00:56]} Be6 {[%emt 0:01:42]} 8. O-O {[%emt 0:01:46]} Qd7 {[%emt 0:01:57]} 9. Bd2 {[%emt 0:04:05]} O-O-O {[%emt 0:02:09]} 10. a3 {[%emt 0:01:30]} g5 {[%emt 0:17:52]} 11. b4 {[%emt 0:04:30]} Nxc3 {[%emt 0:07:23]} 12. Bxc3 {[%emt 0:00:06]} Bh3 {[%emt 0:02:15]} 13. Qa4 {[%emt 0:10:48]} Bxg2 {[%emt 0:08:47]} 14. Kxg2 {[%emt 0:00:04]} Kb8 {[%emt 0:04:14]} 15. Rac1 {[%emt 0:07:19]} Qd5 {[%emt 0:03:24]} 16. b5 {[%emt 0:12:51]} Ne7 {[%emt 0:09:49]} 17. e4 {[%emt 0:09:11]} Qe6 {[%emt 0:03:11]} 18. Rfd1 {[%emt 0:03:33]} h5 {[%emt 0:03:53]} 19. Qc4 {[%emt 0:04:10]} Qc8 {[%emt 0:14:39]} 20. Nxe5 {[%emt 0:05:02]} fxe5 {[%emt 0:04:07]} 21. Bxe5 {[%emt 0:00:05]} Ng6 {[%emt 0:02:37]} 22. Bxc7+ {[%emt 0:01:14]} Ka8 {[%emt 0:00:11]} 23. Bxd8 {[%emt 0:00:04]} 1-0

[Event "Modransky Cup 2025"]
[Site "Modra"]
[Date "2025.02.22"]
[Round "4.9"]
[White "Pisarcik, Richard"]
[Black "Bucor, Mark"]
[Result "0-1"]
[Annotator "NA RC"]
[ECO "B13"]
[WhiteElo "1837"]
[BlackElo "1875"]
[PlyCount "50"]
[EventDate "2025.02.20"]
[EventCountry "SVK"]
[SourceTitle "playchess.com"]
[Source "ChessBase"]
[SourceQuality "1"]
[TimeControl "5400+30"]

1. e4 {[%emt 0:00:09]} c6 {[%emt 0:00:07]} 2. d4 {[%emt 0:00:25]} d5 {[%emt 0:00:08]} 3. exd5 {[%emt 0:00:33]} cxd5 {[%emt 0:00:09]} 4. Bd3 {[%emt 0:00:05]} Nf6 {[%emt 0:00:08]} 5. h3 {[%emt 0:00:05]} Nc6 {[%emt 0:00:06]} 6. c3 {[%emt 0:00:07]} e5 {[%emt 0:00:38]} 7. dxe5 {[%emt 0:00:12]} Nxe5 {[%emt 0:00:08]} 8. Nf3 {[%emt 0:00:03]} Nxd3+ {[%emt 0:00:10]} 9. Qxd3 {[%emt 0:00:05]} Be7 {[%emt 0:00:33]} 10. O-O {[%emt 0:01:59]} O-O {[%emt 0:00:16]} 11. Bg5 {[%emt 0:05:57]} h6 {[%emt 0:00:47]} 12. Bh4 {[%emt 0:01:57]} Re8 {[%emt 0:19:57]} 13. Nbd2 {[%emt 0:05:11]} Qb6 {[%emt 0:07:32]} 14. Nb3 {[%emt 0:06:33]} Bd7 {[%emt 0:01:07]} 15. Nfd4 {[%emt 0:05:03]} a5 {[%emt 0:01:58]} 16. a4 {[%emt 0:03:27]} Rac8 {[%emt 0:01:32]} 17. Nb5 {[%emt 0:05:40]} Rc4 {[%emt 0:24:25]} 18. N3d4 {[%emt 0:11:04]} Ne4 {[%emt 0:18:06]} 19. Bxe7 {[%emt 0:21:41]} Rxe7 {[%emt 0:00:09]} 20. b3 {[%emt 0:00:38]} Rc8 {[%emt 0:02:33]} 21. Rae1 {[%emt 0:05:22]} Rce8 {[%emt 0:03:23]} 22. Ne2 {[%emt 0:11:33]} Nc5 {[%emt 0:04:33]} 23. Qb1 {[%emt 0:02:03]} Bxb5 {[%emt 0:01:09]} 24. axb5 {[%emt 0:01:00]} Rxe2 {[%emt 0:00:09]} 25. Rxe2 {[%emt 0:00:09]} Rxe2 {[%emt 0:00:08]} 0-1

[Event "Modransky Cup 2025"]
[Site "Modra"]
[Date "2025.02.22"]
[Round "4.10"]
[White "Oruzinsky, Juraj"]
[Black "Grom, Stanislav"]
[Result "1-0"]
[Annotator "RC"]
[ECO "B00"]
[WhiteElo "2171"]
[BlackElo "1846"]
[PlyCount "27"]
[EventDate "2025.02.20"]
[EventCountry "SVK"]
[SourceTitle "playchess.com"]
[Source "ChessBase"]
[SourceQuality "1"]
[TimeControl "5400+30"]

1. e4 {[%emt 0:00:04]} Nc6 {[%emt 0:00:06]} 2. Nf3 {[%emt 0:00:17]} f5 {[%emt 0:02:29]} 3. exf5 {[%emt 0:00:12]} d5 {[%emt 0:00:06]} 4. Bb5 {[%emt 0:00:09]} Bxf5 {[%emt 0:00:07]} 5. Ne5 {[%emt 0:00:08]} Qd6 {[%emt 0:00:36]} 6. d4 {[%emt 0:00:34]} a6 {[%emt 0:01:53]} 7. Bxc6+ {[%emt 0:00:11]} bxc6 {[%emt 0:00:33]} 8. O-O {[%emt 0:01:59]} c5 {[%emt 0:01:30]} 9. c3 {[%emt 0:01:22]} cxd4 {[%emt 0:00:31]} 10. cxd4 {[%emt 0:00:20]} c5 {[%emt 0:00:05]} 11. Nc3 {[%emt 0:01:06]} cxd4 {[%emt 0:01:23]} 12. Qxd4 {[%emt 0:00:05]} e6 {[%emt 0:00:56]} 13. Qa4+ {[%emt 0:01:10]} Ke7 {[%emt 0:01:54]} 14. Bf4 {[%emt 0:00:17]} 1-0

[Event "Modransky Cup 2025"]
[Site "Modra"]
[Date "2025.02.22"]
[Round "4.11"]
[White "Hitka, Dominik"]
[Black "Sekera, Timotej"]
[Result "1-0"]
[Annotator "ChessBase"]
[ECO "B23"]
[WhiteElo "2099"]
[BlackElo "1802"]
[PlyCount "71"]
[EventDate "2025.02.20"]
[EventCountry "SVK"]
[SourceTitle "playchess.com"]
[Source "ChessBase"]
[SourceQuality "1"]
[TimeControl "5400+30"]

1. e4 {[%emt 0:00:04]} c5 {[%emt 0:00:35]} 2. Nc3 {[%emt 0:00:23]} Nc6 {[%emt 0:00:27]} 3. Bb5 {[%emt 0:00:07]} g6 {[%emt 0:00:24]} 4. Bxc6 {[%emt 0:00:06]} dxc6 {[%emt 0:00:12]} 5. d3 {[%emt 0:00:05]} Bg7 {[%emt 0:00:21]} 6. Be3 {[%emt 0:00:07]} Qd6 {[%emt 0:05:52]} 7. Nge2 {[%emt 0:03:00]} Nf6 {[%emt 0:00:30]} 8. O-O {[%emt 0:01:32]} O-O {[%emt 0:02:03]} 9. h3 {[%emt 0:00:18]} Rd8 {[%emt 0:07:00]} 10. Qe1 {[%emt 0:05:45]} Qc7 {[%emt 0:31:15]} 11. d4 {[%emt 0:08:29]} c4 {[%emt 0:00:31]} 12. a3 {[%emt 0:04:20]} b5 {[%emt 0:00:30]} 13. f4 {[%emt 0:00:30]} a5 {[%emt 0:01:04]} 14. Qh4 {[%emt 0:02:28]} Bb7 {[%emt 0:08:47]} 15. f5 {[%emt 0:07:35]} b4 {[%emt 0:01:00]} 16. Na4 {[%emt 0:00:39]} Nxe4 {[%emt 0:12:05]} 17. fxg6 {[%emt 0:03:30]} hxg6 {[%emt 0:00:30]} 18. Qxe4 {[%emt 0:01:54]} c5 {[%emt 0:00:48]} 19. Qf4 {[%emt 0:03:40]} Kh7 {[%emt 0:03:48]} 20. Qxf7 {[%emt 0:13:28]} Qc6 {[%emt 0:00:58]} 21. Qf3 {[%emt 0:09:11]} Qxa4 {[%emt 0:00:30]} 22. Qxb7 {[%emt 0:00:30]} Qxc2 {[%emt 0:00:30]} 23. Rae1 {[%emt 0:00:30]} Qxb2 {[%emt 0:14:04]} 24. Bc1 {[%emt 0:01:52]} Qa1 {[%emt 0:01:49]} 25. dxc5 {[%emt 0:01:47]} bxa3 {[%emt 0:01:33]} 26. Qxe7 {[%emt 0:00:28]} a2 {[%emt 0:00:28]} 27. Qh4+ {[%emt 0:05:24]} Kg8 {[%emt 0:00:15]} 28. Qxc4+ {[%emt 0:00:05]} Kh7 {[%emt 0:01:31]} 29. Bh6 {[%emt 0:03:12]} Qxe1 {[%emt 0:04:57]} 30. Rxe1 {[%emt 0:00:29]} a1=Q {[%emt 0:00:09]} 31. Rxa1 {[%emt 0:00:18]} Bxa1 {[%emt 0:00:07]} 32. Bf4 {[%emt 0:00:43]} a4 {[%emt 0:01:06]} 33. Qf7+ {[%emt 0:01:23]} Bg7 {[%emt 0:00:26]} 34. Be5 {[%emt 0:00:05]} Rg8 {[%emt 0:00:09]} 35. Nf4 {[%emt 0:00:07]} Ra6 {[%emt 0:00:56]} 36. Ne6 {[%emt 0:00:13]} 1-0

[Event "Modransky Cup 2025"]
[Site "Modra"]
[Date "2025.02.22"]
[Round "4.12"]
[White "Soldan, Jan"]
[Black "Pongo, Aron"]
[Result "0-1"]
[Annotator "RC"]
[ECO "B95"]
[WhiteElo "1756"]
[BlackElo "2030"]
[PlyCount "43"]
[EventDate "2025.02.20"]
[EventCountry "SVK"]
[SourceTitle "playchess.com"]
[Source "ChessBase"]
[SourceQuality "1"]
[TimeControl "5400+30"]

1. e4 {[%emt 0:00:04]} c5 {[%emt 0:00:01]} 2. Nf3 {[%emt 0:00:10]} d6 {[%emt 0:00:02]} 3. d4 {[%emt 0:00:07]} cxd4 {[%emt 0:00:02]} 4. Nxd4 {[%emt 0:00:08]} Nf6 {[%emt 0:00:03]} 5. Nc3 {[%emt 0:00:11]} a6 {[%emt 0:00:02]} 6. Bg5 {[%emt 0:00:49]} e6 {[%emt 0:00:02]} 7. Be2 {[%emt 0:00:52]} Be7 {[%emt 0:00:29]} 8. Qd3 {[%emt 0:00:21]} O-O {[%emt 0:11:28]} 9. O-O {[%emt 0:01:24]} b5 {[%emt 0:02:17]} 10. a3 {[%emt 0:00:43]} Bb7 {[%emt 0:02:36]} 11. Bf3 {[%emt 0:05:16]} Nbd7 {[%emt 0:03:55]} 12. Nb3 {[%emt 0:00:51]} Ne5 {[%emt 0:07:10]} 13. Qe2 {[%emt 0:00:43]} h6 {[%emt 0:06:11]} 14. Bd2 {[%emt 0:01:42]} d5 {[%emt 0:11:48]} 15. Rad1 {[%emt 0:17:28]} Nxf3+ {[%emt 0:13:49]} 16. gxf3 {[%emt 0:00:57]} Qc7 {[%emt 0:02:44]} 17. Bc1 {[%emt 0:04:49]} Bd6 {[%emt 0:14:18]} 18. h3 {[%emt 0:03:12]} Bf4 {[%emt 0:03:11]} 19. Be3 {[%emt 0:04:10]} dxe4 {[%emt 0:03:55]} 20. fxe4 {[%emt 0:01:20]} Nxe4 {[%emt 0:02:00]} 21. Nxe4 {[%emt 0:03:13]} Bxe4 {[%emt 0:01:46]} 22. c3 {[%emt 0:00:36]} 0-1

[Event "Modransky Cup 2025"]
[Site "Modra"]
[Date "2025.02.22"]
[Round "4.14"]
[White "Kolibik, Jan"]
[Black "Skaraiev, Mykhailo"]
[Result "1/2-1/2"]
[Annotator "RC"]
[ECO "D02"]
[WhiteElo "1683"]
[BlackElo "1980"]
[PlyCount "109"]
[EventDate "2025.02.20"]
[EventCountry "SVK"]
[SourceTitle "playchess.com"]
[Source "ChessBase"]
[SourceQuality "1"]
[TimeControl "5400+30"]

1. Nf3 {[%emt 0:01:07]} d5 {[%emt 0:00:22]} 2. d4 {[%emt 0:00:23]} Nf6 {[%emt 0:00:17]} 3. b3 {[%emt 0:01:13]} Bf5 {[%emt 0:00:49]} 4. e3 {[%emt 0:00:16]} e6 {[%emt 0:00:44]} 5. Bd3 {[%emt 0:01:03]} Bxd3 {[%emt 0:00:54]} 6. Qxd3 {[%emt 0:00:55]} c6 {[%emt 0:01:01]} 7. O-O {[%emt 0:00:44]} Nbd7 {[%emt 0:00:12]} 8. c4 {[%emt 0:01:40]} Bd6 {[%emt 0:00:31]} 9. Ba3 {[%emt 0:02:33]} c5 {[%emt 0:05:32]} 10. Nbd2 {[%emt 0:02:00]} O-O {[%emt 0:00:59]} 11. Rfc1 {[%emt 0:02:22]} Rc8 {[%emt 0:04:14]} 12. h3 {[%emt 0:00:39]} Re8 {[%emt 0:01:26]} 13. Bb2 {[%emt 0:03:13]} cxd4 {[%emt 0:03:08]} 14. exd4 {[%emt 0:03:05]} e5 {[%emt 0:04:18]} 15. dxe5 {[%emt 0:00:27]} Nxe5 {[%emt 0:00:21]} 16. Nxe5 {[%emt 0:00:44]} Bxe5 {[%emt 0:00:05]} 17. Bxe5 {[%emt 0:00:41]} Rxe5 {[%emt 0:00:03]} 18. Nf3 {[%emt 0:02:26]} Re7 {[%emt 0:02:39]} 19. cxd5 {[%emt 0:00:47]} Rxc1+ {[%emt 0:00:57]} 20. Rxc1 {[%emt 0:00:23]} Rd7 {[%emt 0:00:13]} 21. Qc4 {[%emt 0:01:07]} Nxd5 {[%emt 0:02:58]} 22. Qc8 {[%emt 0:00:38]} Nb6 {[%emt 0:02:51]} 23. Qxd8+ {[%emt 0:01:22]} Rxd8 {[%emt 0:00:06]} 24. Kf1 {[%emt 0:00:33]} Rd7 {[%emt 0:02:28]} 25. Ke1 {[%emt 0:02:09]} f6 {[%emt 0:00:20]} 26. Rc2 {[%emt 0:02:19]} Kf7 {[%emt 0:00:37]} 27. Nd2 {[%emt 0:00:45]} Re7+ {[%emt 0:01:31]} 28. Kf1 {[%emt 0:00:29]} Nd5 {[%emt 0:00:15]} 29. g3 {[%emt 0:01:03]} Nb4 {[%emt 0:00:22]} 30. Rb2 {[%emt 0:00:28]} Nd3 {[%emt 0:02:33]} 31. Rc2 {[%emt 0:00:33]} Re1+ {[%emt 0:00:26]} 32. Kg2 {[%emt 0:01:35]} Re2 {[%emt 0:00:30]} 33. Rc7+ {[%emt 0:01:07]} Kg6 {[%emt 0:00:12]} 34. Nc4 {[%emt 0:01:25]} Rxf2+ {[%emt 0:00:38]} 35. Kg1 {[%emt 0:02:18]} b5 {[%emt 0:01:57]} 36. Nd6 {[%emt 0:00:49]} a6 {[%emt 0:03:53]} 37. a4 {[%emt 0:01:05]} bxa4 {[%emt 0:00:42]} 38. bxa4 {[%emt 0:00:20]} Ra2 {[%emt 0:01:06]} 39. Ne8 {[%emt 0:06:28]} Rxa4 {[%emt 0:00:28]} 40. Rxg7+ {[%emt 0:00:16]} Kh6 {[%emt 0:00:44]} 41. Rg8 {[%emt 0:02:19]} Ra1+ {[%emt 0:00:17]} 42. Kg2 {[%emt 0:01:47]} Ra2+ {[%emt 0:00:35]} 43. Kf3 {[%emt 0:00:40]} Ne5+ {[%emt 0:01:00]} 44. Ke4 {[%emt 0:01:32]} Re2+ {[%emt 0:02:38]} 45. Kd5 {[%emt 0:01:58]} Ng6 {[%emt 0:01:20]} 46. Kd4 {[%emt 0:01:08]} Ne7 {[%emt 0:04:08]} 47. Rf8 {[%emt 0:00:40]} f5 {[%emt 0:02:11]} 48. Rf6+ {[%emt 0:00:58]} Ng6 {[%emt 0:00:19]} 49. Nc7 {[%emt 0:00:46]} a5 {[%emt 0:02:43]} 50. Rxf5 {[%emt 0:00:20]} a4 {[%emt 0:02:16]} 51. Ra5 {[%emt 0:00:41]} Rh2 {[%emt 0:01:13]} 52. Rxa4 {[%emt 0:03:24]} Rxh3 {[%emt 0:00:21]} 53. Ne6 {[%emt 0:00:57]} Rxg3 {[%emt 0:00:51]} 54. Ra1 {[%emt 0:00:14]} Rh3 {[%emt 0:01:29]} 55. Ra7 {[%emt 0:00:32]} 1/2-1/2

[Event "Modransky Cup 2025"]
[Site "Modra"]
[Date "2025.02.22"]
[Round "4.15"]
[White "Bednar, Daniel"]
[Black "Povysil, Peter"]
[Result "1/2-1/2"]
[Annotator "NA RC"]
[ECO "C11"]
[WhiteElo "1720"]
[BlackElo "1890"]
[PlyCount "79"]
[EventDate "2025.02.20"]
[EventCountry "SVK"]
[SourceTitle "playchess.com"]
[Source "ChessBase"]
[SourceQuality "1"]
[TimeControl "5400+30"]

1. e4 {[%emt 0:00:03]} e6 {[%emt 0:01:33]} 2. d4 {[%emt 0:00:05]} d5 {[%emt 0:00:06]} 3. Nc3 {[%emt 0:00:04]} Nf6 {[%emt 0:00:08]} 4. e5 {[%emt 0:00:05]} Nfd7 {[%emt 0:00:04]} 5. f4 {[%emt 0:00:06]} c5 {[%emt 0:00:07]} 6. Nf3 {[%emt 0:00:07]} Nc6 {[%emt 0:00:05]} 7. Be3 {[%emt 0:00:11]} Be7 {[%emt 0:03:27]} 8. Qd2 {[%emt 0:03:46]} a6 {[%emt 0:00:16]} 9. Be2 {[%emt 0:06:48]} O-O {[%emt 0:00:44]} 10. O-O {[%emt 0:00:09]} b5 {[%emt 0:00:24]} 11. Nd1 {[%emt 0:13:29]} cxd4 {[%emt 0:02:55]} 12. Nxd4 {[%emt 0:00:07]} Bb7 {[%emt 0:01:42]} 13. Nf2 {[%emt 0:12:08]} Nb6 {[%emt 0:02:03]} 14. Nxc6 {[%emt 0:01:48]} Bxc6 {[%emt 0:00:18]} 15. Bxb6 {[%emt 0:00:12]} Qxb6 {[%emt 0:00:06]} 16. Bd3 {[%emt 0:16:27]} a5 {[%emt 0:06:27]} 17. Rae1 {[%emt 0:18:50]} f5 {[%emt 0:07:16]} 18. exf6 {[%emt 0:02:03]} Rxf6 {[%emt 0:00:18]} 19. Kh1 {[%emt 0:00:38]} h5 {[%emt 0:24:22]} 20. Qe2 {[%emt 0:10:04]} Be8 {[%emt 0:05:19]} 21. Nh3 {[%emt 0:01:59]} Bd6 {[%emt 0:03:48]} 22. Ng5 {[%emt 0:01:14]} e5 {[%emt 0:06:52]} 23. fxe5 {[%emt 0:01:12]} Rxf1+ {[%emt 0:02:12]} 24. Qxf1 {[%emt 0:00:17]} Be7 {[%emt 0:01:17]} 25. Qf4 {[%emt 0:04:41]} Qh6 {[%emt 0:02:09]} 26. h4 {[%emt 0:00:08]} Bg6 {[%emt 0:00:33]} 27. e6 {[%emt 0:00:54]} Rf8 {[%emt 0:01:23]} 28. Qg3 {[%emt 0:03:15]} Bxd3 {[%emt 0:00:21]} 29. cxd3 {[%emt 0:00:05]} Qf6 {[%emt 0:01:20]} 30. Qf3 {[%emt 0:03:17]} Qg6 {[%emt 0:02:42]} 31. Qxd5 {[%emt 0:00:21]} Qf6 {[%emt 0:02:30]} 32. Qe4 {[%emt 0:00:47]} g6 {[%emt 0:00:05]} 33. Nf7 {[%emt 0:00:38]} Kh7 {[%emt 0:02:29]} 34. d4 {[%emt 0:00:40]} Rc8 {[%emt 0:00:26]} 35. Qe3 {[%emt 0:00:41]} Rc4 {[%emt 0:04:46]} 36. Qh6+ {[%emt 0:00:12]} Kg8 {[%emt 0:00:07]} 37. Ng5 {[%emt 0:00:13]} Rxd4 {[%emt 0:01:03]} 38. g3 {[%emt 0:01:05]} Rg4 {[%emt 0:05:06]} 39. Rc1 {[%emt 0:00:33]} Rxg5 {[%emt 0:00:41]} 40. Rc8+ {[%emt 0:00:34]} 1/2-1/2